bitfinex-derivatives/quotes_BTCF0:USTF0_20250509
["timestamp","ask_amount","ask_price","bid_price","bid_amount"]
[1746816572634,0.4522265,103420.0,103410.0,1.41697383]
[1746816572837,0.4532265,103420.0,103410.0,1.41697383]
[1746816573637,0.4522265,103420.0,103410.0,1.41797383]
[1746816574936,0.57543429,103420.0,103410.0,1.41797383]
[1746816575828,0.57543429,103420.0,103410.0,1.41797666]
[1746816577546,0.57543429,103420.0,103410.0,1.41793869]
[1746816578829,0.57543429,103420.0,103410.0,1.41593869]
[1746816579030,0.57643429,103420.0,103410.0,1.41493869]
[1746816579242,0.57643429,103420.0,103410.0,1.41493904]
[1746816580734,0.68604812,103420.0,103410.0,1.41493904]
[1746816585546,0.68604812,103420.0,103410.0,1.05413904]
[1746816587250,0.68604812,103420.0,103410.0,0.69333904]
[1746816587546,0.68604812,103420.0,103410.0,1.05413904]
[1746816587547,0.66137493,103420.0,103410.0,1.05413904]
[1746816589049,0.66137493,103420.0,103410.0,1.03954862]
[1746816591048,0.66137493,103420.0,103410.0,1.05413804]
[1746816591652,0.66137493,103420.0,103410.0,0.86074284]
[1746816591954,0.77098876,103420.0,103410.0,0.70114507]
[1746816592245,0.66137493,103420.0,103410.0,0.70114507]
[1746816592435,0.66137493,103420.0,103410.0,0.73414507]
[1746816592639,0.66137493,103420.0,103410.0,0.92754027]
[1746816593651,0.69427493,103420.0,103410.0,0.92754027]
[1746816594251,0.71894812,103420.0,103410.0,0.92754027]
[1746816594544,0.71894812,103420.0,103410.0,0.70114507]
[1746816594744,0.84182812,103420.0,103410.0,0.70114507]
[1746816594947,0.84182812,103420.0,103410.0,0.89454182]
[1746816596754,0.84182812,103420.0,103410.0,0.92564182]
[1746816597247,0.84182812,103420.0,103410.0,0.92564355]
[1746816597450,0.73221429,103420.0,103410.0,0.92564355]
[1746816597653,0.84182812,103420.0,103410.0,0.92564355]
[1746816598654,0.84182812,103420.0,103410.0,0.92564824]
[1746816600346,0.84182812,103420.0,103410.0,0.95774824]
[1746816602058,0.84182812,103420.0,103410.0,0.94315085]
[1746816603154,0.84182812,103420.0,103410.0,0.95797417]
[1746816605857,0.84182812,103420.0,103410.0,0.99107417]
[1746816608460,0.73221429,103420.0,103410.0,0.99107417]
[1746816608756,0.60933429,103420.0,103410.0,1.19738577]
[1746816609156,0.60933429,103420.0,103410.0,1.08777194]
[1746816609157,0.44933429,103420.0,103410.0,1.08777194]
[1746816609456,0.41893429,103420.0,103410.0,1.08777194]
[1746816610249,0.41893429,103420.0,103410.0,1.07294862]
[1746816610558,0.41893429,103420.0,103410.0,1.08779724]
[1746816610752,0.41793429,103420.0,103410.0,1.08879724]
[1746816611062,0.41793429,103420.0,103410.0,1.08779724]
[1746816611246,0.41793429,103420.0,103410.0,1.09079724]
[1746816614362,0.45073429,103420.0,103410.0,1.09079724]
[1746816615347,0.47463351,103420.0,103410.0,1.09079724]
[1746816620064,0.47463351,103420.0,103410.0,1.09081354]
[1746816621360,0.41063351,103420.0,103410.0,1.09081354]
[1746816622560,0.47383351,103420.0,103410.0,1.09081354]
[1746816622965,0.47383351,103420.0,103410.0,1.09080803]
[1746816624764,0.44263351,103420.0,103410.0,1.20042186]
[1746816624968,0.38063351,103420.0,103410.0,1.20042186]
[1746816626063,0.33213675,103420.0,103410.0,1.20042186]
[1746816626662,0.33213675,103420.0,103410.0,1.2004183]
[1746816626663,0.29923675,103420.0,103410.0,1.2004183]
[1746816628365,0.33003675,103420.0,103410.0,1.20041969]
[1746816630261,0.33003675,103420.0,103410.0,1.20042014]
[1746816632062,0.33003675,103420.0,103410.0,1.20041957]
[1746816633972,0.33003675,103420.0,103410.0,1.20041941]
[1746816635259,0.10586025,103420.0,103410.0,1.20041941]
[1746816635676,0.10586025,103420.0,103410.0,1.2004197]
[1746816635677,0.13786025,103420.0,103410.0,1.2004197]
[1746816636564,0.33123675,103420.0,103410.0,1.09080587]
[1746816636869,0.33123675,103420.0,103410.0,1.2004197]
[1746816637365,0.33123675,103420.0,103410.0,1.20041979]
[1746816637565,0.13786025,103420.0,103410.0,1.20041979]
[1746816640974,0.13786025,103420.0,103410.0,1.2004038]
[1746816642879,0.13786025,103420.0,103410.0,1.20040458]
[1746816643475,0.13786025,103420.0,103410.0,1.09079075]
[1746816643775,0.13786025,103420.0,103410.0,1.20040458]
[1746816644577,0.13786025,103420.0,103410.0,1.18556245]
[1746816644875,0.13786025,103420.0,103410.0,1.20040558]
[1746816645182,0.29786025,103420.0,103410.0,1.20040558]
[1746816645977,0.29786025,103420.0,103410.0,1.56120558]
[1746816646177,0.10586025,103420.0,103410.0,1.56120558]
[1746816648472,0.10586025,103420.0,103410.0,1.5612007]
[1746816649670,0.10586025,103420.0,103410.0,1.67081453]
[1746816650084,0.10586025,103420.0,103410.0,1.67081374]
[1746816650773,0.00725,103420.0,103410.0,3.17081374]
[1746816651173,0.00725,103420.0,103410.0,3.33081374]
[1746816651878,0.00725,103420.0,103410.0,3.33080682]
[1746816654284,0.00725,103420.0,103410.0,3.17080682]
[1746816655879,0.00725,103420.0,103410.0,1.67080682]
[1746816656079,0.03965,103420.0,103410.0,1.67080682]
[1746816657078,0.03965,103420.0,103410.0,1.56119299]
[1746816658087,0.03965,103420.0,103410.0,1.67080682]
[1746816658786,0.03965,103420.0,103410.0,1.67062944]
[1746816659588,0.03965,103420.0,103410.0,1.56101561]
[1746816659888,0.03965,103420.0,103410.0,1.68341561]
[1746816660088,0.07265,103420.0,103410.0,1.68341561]
[1746816660388,0.10545,103420.0,103410.0,1.68341561]
[1746816660789,0.10545,103420.0,103410.0,1.57380178]
[1746816660980,0.10545,103420.0,103410.0,1.68341377]
[1746816661176,0.03965,103420.0,103410.0,1.7930276]
[1746816663685,0.06985,103420.0,103410.0,1.68341377]
[1746816663882,0.10095,103420.0,103410.0,1.68341377]
[1746816664392,0.10095,103420.0,103410.0,1.68341816]
[1746816667792,0.10095,103420.0,103410.0,1.66876245]
[1746816667994,0.10095,103420.0,103410.0,1.68341962]
[1746816668593,0.10095,103420.0,103410.0,1.68342036]
[1746816669482,0.10095,103420.0,103410.0,1.80566036]
[1746816669688,0.10095,103420.0,103410.0,1.80565325]
[1746816670193,0.26095,103420.0,103410.0,1.80565325]
[1746816670396,0.26095,103420.0,103410.0,1.65023325]
[1746816671595,0.26095,103420.0,103410.0,1.65023458]
[1746816675192,0.26095,103420.0,103410.0,1.65024062]
[1746816675595,0.4543265,103420.0,103410.0,1.35510679]
[1746816675788,0.56394033,103420.0,103410.0,1.16171159]
[1746816676002,0.56394033,103420.0,103410.0,1.06501382]
[1746816676394,0.56394033,103420.0,103410.0,1.25840902]
[1746816676997,0.56394033,103420.0,103410.0,1.06501382]
[1746816678106,0.56394033,103420.0,103410.0,1.06401382]
[1746816678304,0.56494033,103420.0,103410.0,1.06401382]
[1746816678506,0.66355058,103420.0,103410.0,1.25740902]
[1746816678705,0.66355058,103420.0,103410.0,1.25739227]
[1746816679005,0.66355058,103420.0,103410.0,1.25539227]
[1746816679206,0.55393675,103420.0,103410.0,1.25539227]
[1746816680004,0.66355058,103420.0,103410.0,1.0619939]
[1746816680305,0.77316441,103420.0,103410.0,1.24075085]
[1746816680507,0.80606441,103420.0,103410.0,1.25538631]
[1746816681105,0.69645058,103420.0,103410.0,1.25538631]
[1746816681407,0.80606441,103420.0,103410.0,1.25538631]
[1746816681907,1.01606441,103420.0,103410.0,1.06199111]
[1746816682109,0.90645058,103420.0,103410.0,1.06199111]
[1746816682308,0.83552454,103420.0,103410.0,1.25538631]
[1746816682610,0.81552454,103420.0,103410.0,1.06199111]
[1746816683106,0.81552454,103420.0,103410.0,1.25538631]
[1746816683309,0.81552454,103420.0,103410.0,1.06199111]
[1746816683610,0.81552454,103420.0,103410.0,1.25538631]
[1746816683796,0.81552454,103420.0,103410.0,1.06199111]
[1746816684201,0.81552454,103420.0,103410.0,1.2553805]
[1746816686514,0.71691429,103420.0,103410.0,1.2553805]
[1746816686706,0.49768663,103420.0,103410.0,1.2553805]
[1746816687012,0.71691429,103420.0,103410.0,1.2553805]
[1746816687911,0.71691429,103420.0,103410.0,1.0619853]
[1746816689516,1.21307029,103420.0,103410.0,1.061979]
[1746816689708,1.21307029,103420.0,103410.0,0.32575565]
[1746816691818,1.57387029,103420.0,103410.0,0.32575565]
[1746816692205,1.36774762,103420.0,103390.0,0.3608]
[1746816692406,1.36774762,103420.0,103390.0,0.24]
[1746816692407,0.97976969,103400.0,103390.0,0.24]
[1746816692707,0.97976969,103400.0,103360.0,0.50774226]
[1746816692708,0.19347,103370.0,103360.0,0.50774226]
[1746816692911,0.53489766,103370.0,103360.0,0.85237718]
[1746816693207,0.53489766,103370.0,103360.0,0.83774226]
[1746816693208,0.77912783,103370.0,103360.0,0.83774226]
[1746816693920,0.90148783,103370.0,103360.0,0.83774226]
[1746816694120,0.90148783,103370.0,103360.0,0.86994226]
[1746816694423,0.90148783,103370.0,103360.0,0.87294226]
[1746816694613,0.91096466,103370.0,103360.0,0.87294226]
[1746816694812,0.91096466,103370.0,103360.0,0.396]
[1746816695011,0.90148783,103370.0,103360.0,0.4]
[1746816695418,0.90148783,103370.0,103360.0,0.71]
[1746816695718,0.80474383,103370.0,103360.0,0.71]
[1746816697121,0.64474383,103370.0,103360.0,0.71]
[1746816697522,0.65199383,103370.0,103360.0,0.71]
[1746816698418,0.65199383,103370.0,103360.0,0.7419]
[1746816698618,0.68489383,103370.0,103360.0,0.7419]
[1746816698813,0.33072,103370.0,103360.0,0.9353887]
[1746816699014,0.45288,103370.0,103360.0,1.03213324]
[1746816699210,0.38798,103370.0,103360.0,1.33284707]
[1746816699417,0.26582,103370.0,103360.0,1.33284707]
[1746816699717,0.23362,103370.0,103360.0,1.33284707]
[1746816700819,0.23362,103370.0,103360.0,1.34742168]
[1746816701520,0.20072,103370.0,103360.0,1.34742168]
[1746816701717,0.00725,103370.0,103360.0,1.45703551]
[1746816701913,0.00725,103370.0,103360.0,1.40494174]
[1746816702113,0.00725,103370.0,103360.0,1.52710174]
[1746816702419,0.20072,103370.0,103360.0,1.52710174]
[1746816702619,0.20072,103370.0,103360.0,1.52710386]
[1746816704220,0.00725,103370.0,103360.0,1.52710386]
[1746816704422,0.20072,103370.0,103360.0,1.52710386]
[1746816705323,0.00725,103370.0,103360.0,1.52710386]
[1746816706421,0.36785555,103370.0,103360.0,0.94757507]
[1746816706633,0.23112,103370.0,103360.0,0.94757507]
[1746816706822,0.23112,103370.0,103360.0,1.04431961]
[1746816707223,0.23112,103370.0,103360.0,0.88434013]
[1746816709224,0.23112,103370.0,103360.0,1.04434013]
[1746816709830,0.23112,103370.0,103360.0,1.23782883]
[1746816711735,0.23112,103370.0,103360.0,1.04434013]
[1746816711932,0.39825555,103370.0,103360.0,0.91649559]
[1746816712130,0.42865555,103370.0,103360.0,0.75649559]
[1746816712635,0.42865555,103370.0,103360.0,0.75650484]
[1746816714233,0.55073555,103370.0,103360.0,0.75650484]
[1746816714437,0.55073555,103370.0,103360.0,0.94999354]
[1746816717839,0.55073555,103370.0,103360.0,0.75650484]
[1746816719543,0.58363555,103370.0,103360.0,0.75650484]
[1746816720235,0.58363555,103370.0,103360.0,0.7419]
[1746816720946,0.4165,103370.0,103360.0,0.9353887]
[1746816721139,0.4165,103370.0,103360.0,0.7419]
[1746816721840,0.4165,103370.0,103360.0,0.9353887]
[1746816722043,0.4165,103370.0,103360.0,0.7419]
[1746816723047,0.4165,103370.0,103360.0,0.75655919]
[1746816724647,0.4165,103370.0,103360.0,0.75655979]
[1746816725540,0.4165,103370.0,103360.0,0.95004849]
[1746816725743,0.52624225,103370.0,103360.0,0.95004849]
[1746816726135,0.52624225,103370.0,103360.0,1.11004849]
[1746816726344,0.4165,103370.0,103360.0,1.11004893]
[1746816726546,0.52624225,103370.0,103360.0,1.11004893]
[1746816727147,0.52624225,103370.0,103360.0,0.75656023]
[1746816727951,0.52624225,103370.0,103360.0,0.75656053]
[1746816729146,0.52624225,103370.0,103360.0,0.7419]
[1746816729348,0.52624225,103370.0,103360.0,0.71]
[1746816729655,0.52624225,103370.0,103360.0,0.6778]
[1746816730042,0.52624225,103370.0,103360.0,0.7083]
[1746816731050,0.52624225,103370.0,103360.0,0.9017887]
[1746816731450,0.52624225,103370.0,103360.0,0.9319887]
[1746816733046,0.52624225,103370.0,103360.0,0.7385]
[1746816733249,0.52624225,103370.0,103360.0,0.8985]
[1746816734155,0.52624225,103370.0,103360.0,0.7385]
[1746816735154,0.52624225,103370.0,103360.0,0.8985]
[1746816735356,0.40416225,103370.0,103360.0,1.0919887]
[1746816735655,0.41638,103370.0,103360.0,1.18873324]
[1746816737558,0.52612225,103370.0,103360.0,1.18873324]
[1746816737758,0.52612225,103370.0,103360.0,1.18673324]
[1746816738358,0.41638,103370.0,103360.0,1.18673324]
[1746816738557,0.41638,103370.0,103360.0,1.18573324]
[1746816740459,0.52612225,103370.0,103360.0,0.99224454]
[1746816740654,0.52612225,103370.0,103360.0,0.8955]
[1746816740960,0.9558645,103370.0,103360.0,0.8348]
[1746816741163,0.9558645,103370.0,103360.0,0.6748]
[1746816741655,1.3166645,103370.0,103360.0,0.314]
[1746816742656,1.32616244,103370.0,103360.0,0.314]
[1746816743049,1.21642019,103370.0,103360.0,0.314]
[1746816743359,1.32616244,103370.0,103360.0,0.314]
[1746816743761,1.39595994,103370.0,103360.0,0.314]
[1746816746063,1.51922275,103370.0,103360.0,0.314]
[1746816746665,1.48632275,103370.0,103360.0,0.314]
[1746816756568,1.51016695,103370.0,103360.0,0.314]
[1746816756767,0.1934887,103360.0,103350.0,0.01866088]
[1746816756964,0.1935074,103350.0,103340.0,0.3608]
[1746816757168,1.1735914,103350.0,103340.0,0.3608]
[1746816757467,1.3135914,103350.0,103340.0,0.3608]
[1746816757870,0.1935262,103340.0,103330.0,0.01431919]
[1746816758057,0.1935449,103330.0,103320.0,0.62383126]
[1746816758259,0.5444669,103330.0,103320.0,0.73746806]
[1746816758462,0.5444669,103330.0,103320.0,0.93103166]
[1746816759064,0.5444669,103330.0,103320.0,1.09103166]
[1746816760374,0.5454669,103330.0,103320.0,1.09103166]
[1746816761172,0.5527169,103330.0,103320.0,1.09103166]
[1746816762574,0.5527169,103330.0,103320.0,1.10549583]
[1746816764678,0.5527169,103330.0,103320.0,0.91193223]
[1746816764863,0.5527169,103330.0,103320.0,1.10549583]
[1746816765068,0.5527169,103330.0,103320.0,0.91193223]
[1746816767765,0.5527169,103330.0,103320.0,1.10549583]
[1746816768474,0.5527169,103330.0,103320.0,0.91193223]
[1746816769673,0.49527858,103330.0,103320.0,0.91193223]
[1746816770377,0.49527858,103330.0,103320.0,1.10549583]
[1746816771777,0.49527858,103330.0,103320.0,0.91193223]
[1746816774080,0.50487337,103330.0,103320.0,0.94253223]
[1746816775781,0.50487337,103330.0,103320.0,1.13609583]
[1746816775983,0.53537337,103330.0,103320.0,1.16899583]
[1746816776185,0.53537337,103330.0,103320.0,0.97543223]
[1746816777985,0.52577858,103330.0,103320.0,1.16899583]
[1746816779086,0.52577858,103330.0,103320.0,0.97543223]
[1746816784689,0.64765858,103330.0,103320.0,0.97543223]
[1746816786488,0.64665858,103330.0,103320.0,0.97543223]
[1746816786689,0.64865858,103330.0,103320.0,0.97543223]
[1746816787288,0.64665858,103330.0,103320.0,0.97543223]
[1746816787488,0.64765858,103330.0,103320.0,0.97543223]
[1746816787690,0.5378149,103330.0,103320.0,1.16899583]
[1746816787989,0.64765858,103330.0,103320.0,0.97543223]
[1746816788189,0.64765858,103330.0,103320.0,1.16899583]
[1746816788790,0.64765858,103330.0,103320.0,0.97543223]
[1746816789289,0.64765858,103330.0,103320.0,1.16899583]
[1746816790693,0.64765858,103330.0,103320.0,0.97543223]
[1746816794498,0.64765858,103330.0,103320.0,1.16899583]
[1746816795296,0.2017949,103330.0,103320.0,1.3756215]
[1746816795499,0.2017949,103330.0,103320.0,1.26577782]
[1746816796498,0.2007949,103330.0,103320.0,1.26977782]
[1746816797099,0.2007949,103330.0,103320.0,1.48946518]
[1746816797306,0.2007949,103330.0,103320.0,1.3796215]
[1746816798000,0.2007949,103330.0,103320.0,1.48946518]
[1746816798195,0.00725,103330.0,103320.0,1.61118518]
[1746816798400,0.1935273,103340.0,103330.0,0.3386757]
[1746816798600,0.1935273,103340.0,103330.0,1.30270388]
[1746816798801,0.1935273,103340.0,103330.0,1.42438388]
[1746816799103,0.1935273,103340.0,103330.0,1.68116587]
[1746816799704,0.1935273,103340.0,103330.0,1.52293769]
[1746816800406,0.1935273,103340.0,103330.0,1.63278137]
[1746816800612,0.1935273,103340.0,103330.0,1.63478137]
[1746816801709,0.1935273,103340.0,103330.0,1.69321191]
[1746816802111,0.1935273,103340.0,103330.0,1.52593769]
[1746816802506,0.2253273,103340.0,103330.0,1.52593769]
[1746816803715,0.1935273,103340.0,103330.0,1.52593769]
[1746816803914,0.1935273,103340.0,103330.0,1.69321191]
[1746816809208,0.2239273,103340.0,103330.0,1.69321191]
[1746816812607,0.2239273,103340.0,103330.0,2.08521191]
[1746816817418,0.2239273,103340.0,103330.0,1.96353191]
[1746816817619,0.2859273,103340.0,103330.0,2.08509191]
[1746816818017,0.2859273,103340.0,103330.0,1.79625769]
[1746816818219,0.2859273,103340.0,103330.0,1.91781769]
[1746816820219,0.2859273,103340.0,103330.0,1.79625769]
[1746816820406,0.2859273,103340.0,103330.0,1.91781769]
[1746816822319,0.2859273,103340.0,103330.0,1.88661769]
[1746816822515,0.39572033,103340.0,103330.0,1.61990819]
[1746816823020,0.39572033,103340.0,103330.0,1.55492689]
[1746816823223,0.39572033,103340.0,103330.0,1.2981449]
[1746816823822,0.39572033,103340.0,103330.0,1.3308449]
[1746816824117,0.39572033,103340.0,103330.0,1.4908449]
[1746816825522,0.2859273,103340.0,103330.0,1.4908449]
[1746816825821,0.2859273,103340.0,103330.0,1.5236449]
[1746816829123,0.2859273,103340.0,103330.0,1.3636449]
[1746816830121,0.2859273,103340.0,103330.0,1.5236449]
[1746816834318,0.2859273,103340.0,103330.0,1.1628449]
[1746816834926,0.39572033,103340.0,103330.0,1.1628449]
[1746816835118,0.2859273,103340.0,103330.0,1.1628449]
[1746816835319,0.39572033,103340.0,103330.0,1.1628449]
[1746816840030,0.2859273,103340.0,103330.0,1.1628449]
[1746816840228,0.2859273,103340.0,103330.0,1.1933449]
[1746816840423,0.2859273,103340.0,103330.0,0.9998]
[1746816840626,0.2859273,103340.0,103330.0,1.1933449]
[1746816842133,0.2859273,103340.0,103330.0,1.20801832]
[1746816842332,0.2859273,103340.0,103330.0,1.20601832]
[1746816842532,0.2859273,103340.0,103330.0,1.20501832]
[1746816843034,0.2859273,103340.0,103330.0,1.20501862]
[1746816843426,0.2859273,103340.0,103330.0,0.9968]
[1746816843629,0.39572033,103340.0,103330.0,0.98097625]
[1746816845022,0.50551336,103340.0,103330.0,0.91547625]
[1746816845223,0.86631336,103340.0,103330.0,0.17467625]
[1746816845638,0.89921336,103340.0,103330.0,0.17467988]
[1746816845926,0.89921336,103340.0,103330.0,0.50467988]
[1746816846239,0.78942033,103340.0,103330.0,0.53497988]
[1746816847036,0.89921336,103340.0,103330.0,0.53497988]
[1746816847839,0.90646336,103340.0,103330.0,0.53497988]
[1746816848529,0.90646336,103340.0,103330.0,0.20497988]
[1746816848933,0.90646336,103340.0,103330.0,0.17467988]
[1746816849134,1.21646336,103340.0,103330.0,0.01467988]
[1746816849331,0.1935449,103330.0,103320.0,0.44363223]
[1746816849529,0.51811793,103330.0,103320.0,0.79363223]
[1746816849735,0.51811793,103330.0,103320.0,0.8083093]
[1746816850135,0.51811793,103330.0,103320.0,0.9683093]
[1746816850335,0.51811793,103330.0,103320.0,0.9693093]
[1746816850538,0.51811793,103330.0,103320.0,0.9713093]
[1746816850937,0.51811793,103330.0,103320.0,0.95663223]
[1746816851133,0.51811793,103330.0,103320.0,0.95563223]
[1746816851640,0.51811793,103330.0,103320.0,0.95363223]
[1746816855042,0.51811793,103330.0,103320.0,1.14719583]
[1746816855234,0.4082849,103330.0,103320.0,1.17909583]
[1746816856943,0.51807793,103330.0,103320.0,1.17909583]
[1746816865745,0.4082849,103330.0,103320.0,1.17909583]
[1746816868747,0.2249449,103330.0,103320.0,1.38567085]
[1746816868950,0.2249449,103330.0,103320.0,1.27587782]
[1746816870956,0.2249449,103330.0,103320.0,1.29076545]
[1746816871452,0.2249449,103330.0,103320.0,1.27587782]
[1746816871658,0.2249449,103330.0,103320.0,1.29078364]
[1746816873454,0.2249449,103330.0,103320.0,1.27587782]
[1746816873652,0.2249449,103330.0,103320.0,1.29079099]
[1746816875156,0.1935449,103330.0,103320.0,1.51037705]
[1746816875358,0.1935449,103330.0,103320.0,1.63185705]
[1746816876455,0.378845,103340.0,103330.0,0.1935449]
[1746816876760,0.378845,103340.0,103330.0,1.1211511]
[1746816877060,0.378845,103340.0,103330.0,1.21793309]
[1746816877259,0.378845,103340.0,103330.0,1.37793309]
[1746816877460,0.378845,103340.0,103330.0,1.37792043]
[1746816878259,0.378845,103340.0,103330.0,1.37992043]
[1746816878462,0.409245,103340.0,103330.0,1.37992043]
[1746816878653,0.376345,103340.0,103330.0,1.37992043]
[1746816878853,0.376345,103340.0,103330.0,1.38092043]
[1746816879559,0.345945,103340.0,103330.0,1.38092043]
[1746816880467,0.376345,103340.0,103330.0,1.38092043]
[1746816884461,0.00725,103340.0,103330.0,1.38092043]
[1746816884664,0.2007762,103340.0,103330.0,1.38092043]
[1746816885165,0.2007762,103340.0,103330.0,1.36601992]
[1746816885466,0.2007762,103340.0,103330.0,1.38089943]
[1746816887365,0.2007762,103340.0,103330.0,1.38089286]
[1746816888366,0.2329762,103340.0,103330.0,1.38089286]
[1746816891078,0.2329762,103340.0,103330.0,1.38088972]
[1746816894780,0.2329762,103340.0,103330.0,1.38089062]
[1746816896276,0.2644762,103340.0,103330.0,1.38089062]
[1746816896682,0.2644762,103340.0,103330.0,1.38089259]
[1746816898588,0.2644762,103340.0,103330.0,1.38089419]
[1746816898886,0.2976762,103340.0,103330.0,1.38089419]
[1746816899184,0.2976762,103340.0,103330.0,1.02009419]
[1746816899382,0.2976762,103340.0,103330.0,1.74169419]
[1746816901382,0.44627761,103360.0,103330.0,1.80309642]
[1746816901588,0.2252074,103350.0,103340.0,0.66581453]
[1746816901786,0.2252074,103350.0,103340.0,1.7646685]
[1746816902281,0.2567074,103350.0,103340.0,2.02144113]
[1746816902588,0.2567074,103350.0,103340.0,2.14280113]
[1746816902787,0.30074831,103360.0,103350.0,0.1935074]
[1746816902788,0.41081771,103360.0,103350.0,0.1935074]
[1746816902986,0.41081771,103360.0,103350.0,1.0310747]
[1746816903175,0.41081771,103360.0,103350.0,1.19107187]
[1746816903380,0.41281771,103360.0,103350.0,1.28783513]
[1746816903990,0.34881771,103360.0,103350.0,1.28783513]
[1746816904287,0.2256956,103360.0,103350.0,1.28783513]
[1746816904789,0.2571956,103360.0,103350.0,1.28783513]
[1746816905486,0.2571956,103360.0,103350.0,1.16317066]
[1746816905682,0.2887956,103360.0,103350.0,1.28783618]
[1746816905988,0.2887956,103360.0,103350.0,1.25573618]
[1746816906189,0.2887956,103360.0,103350.0,1.14594315]
[1746816906377,0.2887956,103360.0,103350.0,1.25573618]
[1746816907287,0.2887956,103360.0,103350.0,1.14594315]
[1746816907489,0.2887956,103360.0,103350.0,1.14594393]
[1746816908184,0.2887956,103360.0,103350.0,0.79243653]
[1746816908885,0.39858863,103360.0,103350.0,0.79243653]
[1746816909288,0.39858863,103360.0,103350.0,0.79243859]
[1746816909680,0.2887956,103360.0,103350.0,0.98594599]
[1746816909883,0.2887956,103360.0,103350.0,1.09573902]
[1746816910285,0.2887956,103360.0,103350.0,1.25573902]
[1746816910784,0.2887956,103360.0,103350.0,1.14594599]
[1746816911191,0.2887956,103360.0,103350.0,1.14593912]
[1746816914097,0.2887956,103360.0,103350.0,0.98593912]
[1746816914299,0.2887956,103360.0,103350.0,0.79243172]
[1746816914989,0.2887956,103360.0,103350.0,0.98593912]
[1746816915390,0.2887956,103360.0,103350.0,1.09573215]
[1746816915590,0.2887956,103360.0,103350.0,1.15613215]
[1746816915797,0.2887956,103360.0,103350.0,1.04633912]
[1746816916097,0.2887956,103360.0,103350.0,1.20633912]
[1746816916596,0.2887956,103360.0,103350.0,1.19147066]
[1746816916796,0.2887956,103360.0,103350.0,1.20634493]
[1746816918900,0.2887956,103360.0,103350.0,1.01283753]
[1746816920401,0.2887956,103360.0,103350.0,1.0128423]
[1746816921301,0.2887956,103360.0,103350.0,0.9524423]
[1746816921497,1.11918166,103360.0,103350.0,0.26487904]
[1746816921795,1.11918166,103360.0,103350.0,0.16]
[1746816922195,0.1935074,103350.0,103340.0,0.3608]
[1746816922396,0.39670043,103350.0,103340.0,0.78858048]
[1746816924503,0.2869074,103350.0,103340.0,0.78858048]
[1746816924801,0.2869074,103350.0,103340.0,1.01260668]
[1746816924995,0.2869074,103350.0,103340.0,1.01259393]
[1746816925195,0.2869074,103350.0,103340.0,1.17259393]
[1746816925603,0.2869074,103350.0,103340.0,0.97906773]
[1746816927704,0.39670043,103350.0,103340.0,0.97906773]
[1746816928103,0.39670043,103350.0,103340.0,0.81906773]
[1746816928704,0.40395043,103350.0,103340.0,0.81906773]
[1746816930306,0.52523043,103350.0,103340.0,0.97906773]
[1746816931404,0.4154374,103350.0,103340.0,1.17259393]
[1746816931601,0.4154374,103350.0,103340.0,0.97906773]
[1746816931800,0.52523043,103350.0,103340.0,0.97906773]
[1746816933300,0.52523043,103350.0,103340.0,0.97906878]
[1746816935210,0.40395043,103350.0,103340.0,0.97906878]
[1746816935410,0.52523043,103350.0,103340.0,0.97906878]
[1746816936203,0.52523043,103350.0,103340.0,0.78856878]
[1746816936905,0.52523043,103350.0,103340.0,0.78857328]
[1746816937810,0.88603043,103350.0,103340.0,0.39487328]
[1746816938008,0.88603043,103350.0,103330.0,0.4261]
[1746816938009,0.1935262,103340.0,103330.0,0.4248]
[1746816938203,0.50531226,103340.0,103330.0,0.79967671]
[1746816938505,0.50531226,103340.0,103330.0,0.7848]
[1746816938811,0.50531226,103340.0,103330.0,0.7996767]
[1746816939110,0.39551923,103340.0,103330.0,0.8006767]
[1746816939312,0.39551923,103340.0,103330.0,0.8026767]
[1746816939913,0.39551923,103340.0,103330.0,0.7705767]
[1746816940311,0.39551923,103340.0,103330.0,0.7557]
[1746816940512,0.73551923,103340.0,103330.0,0.77057839]
[1746816940700,0.84531226,103340.0,103330.0,0.77057839]
[1746816941312,0.73551923,103340.0,103330.0,0.77057839]
[1746816942108,0.85675923,103340.0,103330.0,0.7557]
[1746816942316,0.85675923,103340.0,103330.0,0.77057705]
[1746816942810,0.85675923,103340.0,103330.0,0.80177705]
[1746816943308,0.96655226,103340.0,103330.0,0.73867773]
[1746816943508,0.96655226,103340.0,103330.0,0.7238]
[1746816943709,1.32735226,103340.0,103330.0,0.362]
[1746816943904,1.32735226,103340.0,103330.0,0.36]
[1746816944605,1.21755923,103340.0,103330.0,0.3912]
[1746816944800,1.21755923,103340.0,103330.0,0.4224]
[1746816950812,1.32735226,103340.0,103330.0,0.4224]
[1746816951116,1.32735226,103340.0,103330.0,0.5824]
[1746816952018,1.32735226,103340.0,103330.0,0.5069235]
[1746816953108,1.32735226,103340.0,103330.0,0.3469235]
[1746816954316,1.32735226,103340.0,103330.0,0.5069235]
[1746816955710,1.32735226,103340.0,103330.0,0.4757235]
[1746816956113,1.32735226,103340.0,103330.0,0.3157235]
[1746816956409,1.32735226,103340.0,103330.0,0.3483235]
[1746816957117,1.32735226,103340.0,103330.0,0.2661397]
[1746816957417,1.32735226,103340.0,103330.0,0.2029886]
[1746816957609,1.32735226,103340.0,103330.0,0.050035]
[1746816957811,0.1935449,103330.0,103320.0,0.08113223]
[1746816958105,0.52077793,103330.0,103320.0,0.46113223]
[1746816958310,0.52077793,103330.0,103320.0,0.62113223]
[1746816958808,0.83077793,103330.0,103320.0,0.62113223]
[1746816959009,0.83077793,103330.0,103320.0,0.62313223]
[1746816959210,0.83077793,103330.0,103320.0,0.62413223]
[1746816960321,0.83077793,103330.0,103320.0,0.62313223]
[1746816960620,0.83077793,103330.0,103320.0,0.63801537]
[1746816960822,0.83077793,103330.0,103320.0,1.22347897]
[1746816961023,0.3474849,103330.0,103320.0,1.02991537]
[1746816961320,0.45727793,103330.0,103320.0,1.02991591]
[1746816961516,0.45727793,103330.0,103320.0,0.66711591]
[1746816961929,0.45727793,103330.0,103320.0,1.02791591]
[1746816962121,0.3474849,103330.0,103320.0,1.02791591]
[1746816963220,0.2262449,103330.0,103320.0,1.22147951]
[1746816963520,0.1935449,103330.0,103320.0,1.42805452]
[1746816964622,0.1935449,103330.0,103320.0,1.31826149]
[1746816964824,0.1935449,103330.0,103320.0,1.318268]
[1746816965024,0.2266449,103330.0,103320.0,1.318268]
[1746816965824,0.2266449,103330.0,103320.0,0.957468]
[1746816966212,0.2266449,103330.0,103320.0,1.318268]
[1746816968418,0.2266449,103330.0,103320.0,1.31827766]
[1746816970224,0.2266449,103330.0,103320.0,1.31828462]
[1746816970427,0.1935449,103330.0,103320.0,1.31828462]
[1746816972218,0.2268449,103330.0,103320.0,1.31828462]
[1746816972428,0.1935449,103330.0,103320.0,1.31828462]
[1746816972616,0.1935449,103330.0,103320.0,1.42807765]
[1746816974031,0.1935449,103330.0,103320.0,1.43007765]
[1746816975319,0.1935449,103330.0,103320.0,1.43107765]
[1746816975728,0.30333793,103330.0,103320.0,1.12772102]